bitfinex/quotes_SOLUSD_20240813
["timestamp","ask_amount","ask_price","bid_price","bid_amount"]
[1723561731419,20.0,145.91,145.87,3.0]
[1723561732156,58.3835,145.91,145.87,3.0]
[1723561732843,8.51473536,145.9,145.87,3.0]
[1723561733063,1.66063536,145.89,145.87,3.0]
[1723561733428,58.3838,145.91,145.87,3.0]
[1723561733741,1.66063536,145.9,145.87,3.0]
[1723561733915,1.66063536,145.89,145.87,3.0]
[1723561734653,58.3838,145.91,145.87,3.0]
[1723561735246,60.04443536,145.91,145.87,3.0]
[1723561736155,58.3838,145.91,145.87,3.0]
[1723561736849,6.854,145.9,145.87,3.0]
[1723561737059,60.04433536,145.91,145.87,3.0]
[1723561738257,58.3837,145.91,145.87,3.0]
[1723561738754,38.3849,145.88,145.87,3.0]
[1723561738929,6.8576,145.83,145.77,21.6731]
[1723561739129,1.78612536,145.87,145.77,21.6731]
[1723561739130,6.8585,145.81,145.77,21.6731]
[1723561739445,6.8585,145.81,145.7,0.8275496]
[1723561739446,6.8594,145.79,145.71,21.6731]
[1723561739633,1.66063536,145.78,145.71,21.6731]
[1723561740332,31.53,145.8,145.71,21.6731]
[1723561741021,1.66063536,145.79,145.71,21.6731]
[1723561741227,6.8568,145.84,145.72,20.0]
[1723561741423,1.66063536,145.83,145.72,20.0]
[1723561741648,1.66063536,145.82,145.72,20.0]
[1723561741929,31.53,145.82,145.72,20.0]
[1723561742137,1.66063536,145.81,145.72,20.0]
[1723561742343,31.53,145.84,145.73,15.1559]
[1723561742652,38.386,145.86,145.74,45.37647]
[1723561742851,7.08620931,145.88,145.75,0.12549]
[1723561742852,31.53,145.84,145.75,0.12549]
[1723561743065,1.66063536,145.83,145.75,0.12549]
[1723561743245,1.66063536,145.82,145.75,0.12549]
[1723561743838,1.66063536,145.82,145.73,15.1559]
[1723561744231,31.53,145.84,145.73,15.1559]
[1723561744434,1.66063536,145.83,145.73,15.1559]
[1723561744632,1.66063536,145.82,145.73,15.1559]
[1723561745051,1.66063536,145.82,145.74,0.12549]
[1723561745249,1.66063536,145.83,145.74,0.50196]
[1723561745570,1.66063536,145.82,145.74,45.50196]
[1723561746256,1.66063536,145.83,145.74,45.50196]
[1723561746438,1.66063536,145.82,145.74,45.50196]
[1723561747152,1.66063536,145.83,145.74,45.50196]
[1723561747355,1.66063536,145.82,145.74,45.50196]
[1723561748344,1.66063536,145.83,145.74,45.50196]
[1723561748534,1.66063536,145.82,145.74,45.50196]
[1723561749438,31.53,145.84,145.74,45.50196]
[1723561749660,31.53,145.86,145.76,0.12549]
[1723561749855,38.3859,145.86,145.76,45.50196]
[1723561753267,40.04653536,145.86,145.76,45.50196]
[1723561754041,31.53,145.84,145.76,45.50196]
[1723561754267,1.66063536,145.83,145.76,45.50196]
[1723561754466,31.53,145.84,145.76,45.50196]
[1723561755445,38.3863,145.86,145.76,45.50196]
[1723561755870,38.3863,145.86,145.77,16.0049]
[1723561756171,38.3863,145.86,145.78,45.12549]
[1723561757157,6.8563,145.85,145.78,45.12549]
[1723561758977,38.386,145.86,145.78,45.12549]
[1723561759470,6.8575,145.83,145.78,45.0]
[1723561759770,1.66063536,145.82,145.78,45.0]
[1723561760169,1.66063536,145.82,145.77,16.0049]
[1723561760751,1.66063536,145.81,145.77,16.0049]
[1723561761472,38.3877,145.82,145.77,16.0049]
[1723561761667,38.388,145.82,145.77,16.0049]
[1723561761876,31.53,145.82,145.77,16.0049]
[1723561762263,31.53,145.84,145.77,16.0049]
[1723561762585,33.19063536,145.84,145.77,16.0049]
[1723561762752,7.06308382,145.86,145.78,45.0]
[1723561763574,13.91898382,145.86,145.78,45.0]
[1723561763762,31.53,145.85,145.78,45.0]
[1723561764153,33.19063536,145.85,145.77,16.0049]
[1723561764368,33.19063536,145.85,145.78,45.0]
[1723561764788,33.19063536,145.85,145.77,16.0049]
[1723561764984,38.3874,145.83,145.77,16.0049]
[1723561765191,31.53,145.81,145.77,16.0049]
[1723561766681,1.66063536,145.8,145.75,6.5852]
[1723561766891,33.19063536,145.79,145.73,16.1179]
[1723561767066,31.53,145.79,145.73,16.1179]
[1723561767271,33.19063536,145.79,145.73,16.1179]
[1723561767601,31.53,145.77,145.73,16.1179]
[1723561767770,1.66063536,145.76,145.73,16.1179]
[1723561768769,31.53,145.79,145.73,16.1179]
[1723561769282,31.53,145.81,145.74,45.0]
[1723561770671,1.66063536,145.8,145.74,45.0]
[1723561770873,1.66063536,145.79,145.74,45.0]
[1723561771095,1.66063536,145.79,145.73,16.1179]
[1723561771873,31.53,145.81,145.73,16.1179]
[1723561772201,31.53,145.81,145.74,45.0]
[1723561772202,1.66063536,145.8,145.74,45.0]
[1723561772369,1.66063536,145.79,145.74,45.0]
[1723561772569,1.66063536,145.79,145.73,16.1179]
[1723561773072,40.04983536,145.79,145.73,16.1179]
[1723561773274,33.19063536,145.79,145.73,16.1179]
[1723561773577,31.53,145.79,145.73,16.1179]
[1723561773791,31.53,145.81,145.73,16.1179]
[1723561774584,31.53,145.81,145.74,45.0]
[1723561775063,7.07310518,145.82,145.74,45.0]
[1723561775268,31.53,145.83,145.75,0.37647]
[1723561775490,1.66063536,145.82,145.75,0.25098]
[1723561776201,38.3873,145.83,145.75,0.25098]
[1723561776490,31.53,145.83,145.75,0.25098]
[1723561777081,7.0722647,145.84,145.76,0.12549]
[1723561777272,31.53,145.85,145.76,0.25098]
[1723561777472,31.53,145.85,145.77,0.37647]
[1723561777672,31.53,145.85,145.78,0.12549]
[1723561778170,38.60513479,145.87,145.79,16.6371]
[1723561778369,7.07513479,145.87,145.8,45.12549]
[1723561778792,7.07513479,145.87,145.81,0.12549]
[1723561779366,31.53,145.89,145.81,0.12549]
[1723561779874,7.07341755,145.91,145.84,6.4953]
[1723561780075,1.66063536,145.9,145.85,45.0]
[1723561780277,6.8549,145.88,145.82,16.6371]
[1723561780598,7.07248009,145.91,145.82,16.6371]
[1723561780599,31.53,145.87,145.82,16.6371]
[1723561781186,31.53,145.89,145.82,16.6371]
[1723561781398,20.0,145.88,145.82,16.6371]
[1723561781696,1.66063536,145.87,145.82,16.6371]
[1723561781886,20.0,145.88,145.83,45.0]
[1723561782078,31.53,145.89,145.83,45.0]
[1723561782675,45.45598009,145.91,145.83,45.0]
[1723561782901,20.0,145.9,145.83,45.0]
[1723561783132,8.51543536,145.89,145.82,16.6371]
[1723561783280,38.3848,145.89,145.83,45.0]
[1723561783786,31.53,145.89,145.82,16.6371]
[1723561783996,6.8559,145.86,145.82,16.6371]
[1723561784190,31.53,145.87,145.82,16.6371]
[1723561784497,1.66063536,145.86,145.82,16.6371]
[1723561784715,1.66063536,145.85,145.82,16.6371]
[1723561785385,33.19063536,145.85,145.78,15.1077]
[1723561785583,33.19063536,145.85,145.79,45.0]
[1723561785584,1.66063536,145.84,145.79,45.0]
[1723561786495,38.3856,145.87,145.79,45.0]
[1723561786689,1.66063536,145.86,145.8,0.12549]
[1723561786898,31.53,145.87,145.8,0.12549]
[1723561787314,1.66063536,145.86,145.8,0.12549]
[1723561787620,1.66063536,145.85,145.79,45.0]
[1723561788086,38.3855,145.87,145.79,45.0]
[1723561789327,40.04613536,145.87,145.79,45.0]
[1723561789788,31.53,145.87,145.79,45.0]
[1723561790299,38.3854,145.87,145.79,45.0]
[1723561790502,38.60559161,145.87,145.79,45.0]
[1723561790732,7.07559161,145.87,145.8,0.25098]
[1723561791013,20.0,145.9,145.81,0.12549]
[1723561791219,9.62014217,145.92,145.81,45.12549]
[1723561791220,20.0,145.91,145.81,45.12549]
[1723561791401,34.29694217,145.92,145.83,0.12549]
[1723561791402,41.37027408,145.92,145.83,0.12549]
[1723561791719,45.45643191,145.92,145.83,0.12549]
[1723561792102,45.45643191,145.92,145.84,15.7881]
[1723561792304,45.45643191,145.92,145.85,45.12549]
[1723561792505,45.45643191,145.92,145.84,15.7881]
[1723561792506,1.66063536,145.91,145.84,15.7881]
[1723561792715,31.53,145.9,145.84,15.7881]
[1723561792906,8.51533536,145.89,145.78,15.7881]
[1723561793103,31.53,145.88,145.79,45.50196]
[1723561793316,31.53,145.86,145.78,15.7881]
[1723561794198,1.66063536,145.85,145.78,15.7881]
[1723561794723,40.04753536,145.84,145.74,15.3628]
[1723561795318,6.8573,145.83,145.74,15.3628]
[1723561795526,31.53,145.82,145.74,15.3628]
[1723561796223,6.8585,145.81,145.74,15.3628]
[1723561796426,22.2038,145.85,145.74,15.3628]
[1723561796427,40.04933536,145.8,145.74,15.3628]
[1723561796616,31.53,145.8,145.74,15.3628]
[1723561798442,31.53,145.78,145.7,16.4279496]
[1723561798725,38.39,145.78,145.7,16.4279496]
[1723561799027,1.66063536,145.77,145.7,16.4279496]
[1723561799238,40.05133536,145.76,145.7,16.4279496]
[1723561799418,40.05133536,145.76,145.7,0.8275496]
[1723561799726,31.53,145.74,145.7,0.8275496]
[1723561799928,31.53,145.76,145.7,0.8275496]
[1723561800513,52.9735,145.78,145.7,0.8275496]
[1723561800710,37.5557,145.78,145.7,0.8275496]
[1723561801102,37.5557,145.78,145.71,0.25098]
[1723561801431,31.53,145.8,145.72,0.12549]
[1723561801624,1.66063536,145.79,145.71,0.12549]
[1723561801799,15.58932382,145.79,145.7,0.8275496]
[1723561802002,38.3896,145.78,145.7,0.8275496]
[1723561802310,31.53,145.76,145.7,0.8275496]
[1723561802705,13.92878846,145.79,145.71,0.12549]
[1723561802706,31.53,145.78,145.71,0.12549]
[1723561803616,7.06938846,145.79,145.71,0.37647]
[1723561803915,31.53,145.8,145.72,22.6443]
[1723561804111,31.53,145.82,145.73,45.12549]
[1723561804340,31.53,145.82,145.74,0.12549]
[1723561804825,31.53,145.82,145.73,45.12549]
[1723561805132,6.8584,145.81,145.73,45.12549]
[1723561805438,6.8605,145.77,145.72,16.2072]
[1723561805603,6.8605,145.77,145.7,0.8275496]
[1723561805938,6.861,145.75,145.7,0.8275496]
[1723561806245,31.53,145.76,145.7,0.8275496]
[1723561806532,40.05143536,145.76,145.7,0.8275496]
[1723561806736,33.19063536,145.76,145.7,0.8275496]
[1723561806910,31.53,145.74,145.7,0.8275496]
[1723561807111,1.66063536,145.73,145.7,0.8275496]
[1723561807300,39.1331,145.79,145.7,0.8275496]
[1723561807301,38.3926,145.72,145.7,0.8275496]
[1723561807809,33.19063536,145.72,145.7,0.8275496]
[1723561808010,40.05343536,145.72,145.7,0.8275496]
[1723561808227,6.8629,145.71,145.7,0.8275496]
[1723561808735,6.8629,145.71,145.58,15.607]
[1723561808736,6.8648,145.67,145.58,15.607]
[1723561808911,31.53,145.66,145.58,15.607]
[1723561809630,31.53,145.68,145.58,15.607]
[1723561809842,31.53,145.7,145.59,31.53]
[1723561810017,6.8641,145.69,145.58,15.607]
[1723561810207,46.5144,145.68,145.58,15.607]
[1723561810535,46.5153,145.66,145.58,15.607]
[1723561810706,39.65,145.64,145.55,0.8275496]
[1723561810907,6.8671,145.63,145.55,0.8275496]
[1723561811217,6.8672,145.62,145.55,0.8275496]
[1723561811616,1.66063536,145.61,145.55,0.8275496]
[1723561812109,46.5172,145.62,145.55,0.8275496]
[1723561812619,1.66063536,145.61,145.55,0.8275496]
[1723561812818,46.5172,145.62,145.55,0.8275496]
[1723561813145,46.5172,145.62,145.57,6.8691]
[1723561813342,46.5172,145.62,145.58,6.8687]
[1723561813343,39.65,145.62,145.58,6.8687]
[1723561813646,39.65,145.62,145.59,6.8684]
[1723561814005,55.1584,145.66,145.55,0.8275496]
[1723561814311,46.2035,145.68,145.55,0.8275496]
[1723561814510,22.3241,145.7,145.66,6.8652]
[1723561814511,39.65,145.7,145.66,6.8652]
[1723561814738,39.65,145.7,145.56,55.29696]
[1723561815037,39.65,145.7,145.58,39.77549]
[1723561815038,7.06983791,145.7,145.58,39.77549]
[1723561815335,39.65,145.74,145.63,0.12549]
[1723561815504,39.65,145.76,145.63,21.8743209]
[1723561815709,46.71621528,145.76,145.63,21.8743209]
[1723561816007,46.71621528,145.76,145.65,0.12549]
[1723561816211,39.65,145.78,145.67,0.12549]
[1723561816427,39.65,145.8,145.67,66.87363734]
[1723561816653,7.06821944,145.8,145.68,39.65]
[1723561816813,6.2139,145.81,145.69,45.50196]
[1723561817216,46.71911646,145.82,145.71,0.12549]
[1723561817517,46.71911646,145.82,145.71,45.50196]
[1723561817840,6.8587,145.8,145.71,45.50196]
[1723561818047,6.8601,145.77,145.67,20.0]
[1723561818245,39.65,145.78,145.67,20.0]
[1723561818540,46.51,145.78,145.67,20.0]
[1723561818757,46.509,145.8,145.67,20.0]
[1723561818932,39.65,145.8,145.67,20.0]
[1723561819135,39.65,145.8,145.67,59.65]
[1723561819337,55.23755182,145.82,145.69,0.12549]
[1723561819536,26.8582,145.81,145.69,0.25098]
[1723561819733,1.66063536,145.8,145.71,0.12549]
[1723561819932,20.0,145.81,145.71,0.25098]
[1723561820132,20.0,145.81,145.72,0.25098]
[1723561820335,7.06911646,145.82,145.73,0.12549]
[1723561820534,46.71911646,145.82,145.73,0.25098]
[1723561820926,46.71911646,145.82,145.74,0.25098]
[1723561821122,7.06911646,145.82,145.75,0.12549]
[1723561821327,39.65,145.84,145.75,0.25098]
[1723561821623,48.3791668,145.84,145.75,0.12549]
[1723561821826,20.0,145.83,145.75,0.12549]
[1723561822361,26.8577,145.83,145.75,0.12549]
[1723561822527,7.06853144,145.84,145.75,0.25098]
[1723561822846,7.06853144,145.84,145.76,0.12549]
[1723561823023,7.06853144,145.84,145.76,0.37647]
[1723561823425,7.06853144,145.84,145.77,0.12549]
[1723561823658,39.65,145.88,145.77,0.25098]
[1723561823958,39.65,145.88,145.79,0.12549]
[1723561824127,39.65,145.88,145.79,0.25098]
[1723561824329,46.72100435,145.88,145.8,0.12549]
[1723561824535,1.66063536,145.87,145.8,0.37647]
[1723561825563,53.57610435,145.88,145.79,0.12549]
[1723561825879,46.72100435,145.88,145.79,0.12549]
[1723561826169,7.07100435,145.88,145.79,0.25098]
[1723561826467,39.65,145.9,145.81,0.12549]
[1723561826638,1.66063536,145.89,145.81,0.12549]
[1723561827352,8.51523536,145.89,145.81,0.12549]
[1723561828057,46.71792456,145.9,145.81,0.12549]
[1723561828265,1.66063536,145.89,145.81,0.12549]
[1723561828471,8.51533536,145.89,145.8,0.25098]
[1723561828645,39.65,145.88,145.8,0.12549]
[1723561828843,1.66063536,145.87,145.8,0.25098]
[1723561829147,1.66063536,145.86,145.8,0.25098]
[1723561829338,39.65,145.88,145.8,0.25098]
[1723561829545,1.66063536,145.87,145.8,0.25098]
[1723561829832,39.65,145.86,145.77,0.12549]
[1723561830041,1.66063536,145.85,145.77,0.25098]
[1723561830971,1.66063536,145.85,145.78,0.12549]
[1723561831144,1.66063536,145.85,145.78,0.25098]
[1723561831839,39.65,145.86,145.75,21.8814]
[1723561832662,20.0,145.87,145.75,61.5314]
[1723561832971,6.855,145.88,145.76,20.0]
[1723561833269,6.8545,145.89,145.77,45.37647]
[1723561833564,53.57202456,145.9,145.78,0.12549]
[1723561833783,20.0,145.89,145.78,0.12549]
[1723561834066,93.9087,145.95,145.82,0.12549]
[1723561834067,46.5017,145.95,145.82,0.12549]
[1723561834263,46.5017,145.95,145.82,45.50196]
[1723561834572,46.5017,145.95,145.84,0.12549]
[1723561834573,7.0695551,145.94,145.84,0.12549]
[1723561834871,39.65,145.93,145.83,0.37647]
[1723561835072,6.8536,145.91,145.83,0.12549]
[1723561835246,1.66063536,145.9,145.82,45.25098]
[1723561835573,41.31063536,145.89,145.81,22.7292]
[1723561835764,20.0,145.88,145.82,45.12549]
[1723561836069,39.65,145.91,145.82,45.0]
[1723561836271,6.8531,145.92,145.82,45.0]
[1723561836272,20.0,145.9,145.82,45.0]
[1723561836566,1.66063536,145.89,145.82,45.0]
[1723561836775,6.8546,145.89,145.82,45.0]
[1723561836936,20.0,145.88,145.82,45.0]
[1723561837344,21.66063536,145.88,145.81,22.7292]
[1723561837661,6.8555,145.87,145.81,22.7292]
[1723561838045,21.66063536,145.88,145.81,22.7292]
[1723561838046,26.8559,145.86,145.81,22.7292]
[1723561838253,6.8564,145.85,145.81,22.7292]
[1723561838646,39.65,145.87,145.81,22.7292]
[1723561838858,20.0,145.86,145.81,22.7292]
[1723561839057,26.8551,145.88,145.81,22.7292]
[1723561839371,26.8551,145.88,145.82,0.12549]
[1723561839372,20.0,145.88,145.82,0.12549]
[1723561839665,6.8536,145.91,145.82,45.25098]
[1723561840052,6.8531,145.92,145.83,0.25098]
[1723561840251,6.8527,145.93,145.84,0.12549]
[1723561840490,6.8527,145.93,145.84,0.25098]
[1723561840769,6.854,145.9,145.84,0.25098]
[1723561840940,6.8544,145.89,145.82,45.0]
[1723561841138,6.8544,145.89,145.83,0.12549]
[1723561841643,56.7821,145.93,145.83,0.25098]
[1723561841847,6.854,145.9,145.83,0.25098]
[1723561842862,6.854,145.9,145.83,0.12549]
[1723561843064,6.8545,145.89,145.83,0.37647]
[1723561843682,56.7842,145.91,145.81,22.7292]
[1723561843967,6.8555,145.87,145.81,22.7292]
[1723561844345,1.66063536,145.86,145.81,22.7292]
[1723561844566,6.8555,145.87,145.81,22.7292]
[1723561845052,53.57639818,145.89,145.81,22.7292]
[1723561845255,20.0,145.88,145.81,22.7292]
[1723561845760,26.855,145.88,145.81,22.7292]
[1723561846073,20.0,145.88,145.81,22.7292]
[1723561846379,20.0,145.88,145.82,45.0]
[1723561846941,26.855,145.88,145.82,45.0]
[1723561847372,8.51603536,145.87,145.82,45.0]
[1723561847877,1.66063536,145.87,145.82,45.0]
[1723561848045,26.855,145.88,145.82,45.0]
[1723561848241,20.0,145.88,145.82,45.0]
[1723561848760,20.0,145.88,145.83,0.12549]
[1723561849268,1.66063536,145.88,145.82,45.0]
[1723561849456,21.66063536,145.88,145.82,45.0]
[1723561849776,6.8561,145.86,145.82,45.0]
[1723561850066,1.66063536,145.85,145.81,22.7292]
[1723561850269,20.0,145.86,145.81,22.7292]
[1723561850845,46.5054,145.87,145.81,22.7292]
[1723561851045,6.8554,145.87,145.81,22.7292]
[1723561851378,13.92443347,145.91,145.82,45.12549]
[1723561851574,13.92443347,145.91,145.83,0.25098]
[1723561851875,1.66063536,145.9,145.83,0.12549]
[1723561852039,1.66063536,145.9,145.82,45.25098]
[1723561852040,6.8559,145.86,145.82,45.12549]
[1723561852244,63.85493347,145.91,145.82,45.12549]
[1723561852245,6.8555,145.87,145.82,45.0]
[1723561852445,63.85493347,145.91,145.82,45.0]
[1723561852642,20.0,145.9,145.82,45.0]
[1723561852862,20.0,145.9,145.83,0.37647]
[1723561853247,26.854,145.9,145.83,0.37647]
[1723561853459,6.8546,145.89,145.83,0.37647]
[1723561853667,6.8546,145.89,145.82,45.0]
[1723561853668,1.66063536,145.89,145.82,45.0]
[1723561853856,6.8557,145.87,145.82,45.0]
[1723561854364,6.8559,145.86,145.82,45.0]
[1723561854763,1.66063536,145.85,145.81,22.7292]
[1723561854970,1.66063536,145.85,145.81,16.1046]
[1723561854971,6.8574,145.83,145.81,16.1046]
[1723561855865,46.5057,145.87,145.81,16.1046]
[1723561856072,20.0,145.9,145.82,45.0]
[1723561856073,20.0,145.86,145.82,45.0]
[1723561856774,20.0,145.87,145.82,45.0]
[1723561856976,26.8556,145.87,145.82,45.0]
[1723561857166,6.8548,145.89,145.83,0.60016011]
[1723561857676,20.0,145.88,145.83,0.60016011]
[1723561858081,20.0,145.88,145.83,0.12549]
[1723561858281,20.0,145.88,145.83,0.50196]
[1723561858682,6.8541,145.9,145.83,0.50196]
[1723561859878,6.8544,145.89,145.83,0.50196]
[1723561860173,6.8549,145.88,145.83,0.50196]
[1723561860388,1.66063536,145.9,145.83,0.50196]
[1723561860560,1.66063536,145.89,145.83,0.50196]
[1723561860755,6.855,145.88,145.83,0.50196]
[1723561861476,8.51523536,145.89,145.83,0.50196]
[1723561861783,7.07083347,145.91,145.87,0.12549]
[1723561861974,26.0722,146.0,145.87,45.50196]
[1723561861975,6.8518,145.95,145.87,45.50196]
[1723561862177,39.54,145.97,145.87,45.50196]
[1723561862178,6.851,145.97,145.87,45.50196]
[1723561862486,6.8515,145.96,145.87,45.50196]
[1723561862684,1.66063536,145.95,145.87,45.50196]
[1723561862978,6.8524,145.94,145.87,45.50196]
[1723561863192,6.8519,145.95,145.87,45.50196]
[1723561863367,6.8516,145.95,145.87,45.50196]
[1723561863568,6.8534,145.92,145.87,45.37647]
[1723561863773,8.51403536,145.92,145.87,45.25098]
[1723561864165,6.8536,145.91,145.87,45.25098]
[1723561864366,6.853,145.92,145.87,45.25098]
[1723561864680,28.51433536,145.91,145.86,15.5364]
[1723561864885,20.0,145.91,145.86,15.5364]
[1723561865187,21.66063536,145.94,145.86,15.5364]
[1723561865368,6.8533,145.92,145.86,15.5364]
[1723561865562,6.8543,145.9,145.86,15.5364]
[1723561865781,6.8541,145.9,145.86,15.5364]
[1723561865969,39.54,145.93,145.86,15.5364]
[1723561866288,6.8521,145.94,145.86,15.5364]
[1723561866584,39.54,145.95,145.87,0.25098]
[1723561866585,46.3919,145.95,145.87,0.25098]
[1723561866774,25.94389545,145.99,145.87,0.25098]
[1723561866775,46.69836009,145.99,145.87,0.25098]
[1723561866977,14.00816009,145.99,145.91,15.3981]
[1723561867277,56.6619,146.02,145.91,15.3981]
[1723561867278,6.8491,146.01,145.92,45.50196]
[1723561867480,6.8491,146.01,145.93,1.18657333]
[1723561867684,42.33926424,146.04,145.94,1.43842393]
[1723561867992,0.8275496,146.06,145.97,6.0959]
[1723561867993,39.54,146.05,145.97,6.0959]
[1723561868179,6.8484,146.02,145.98,45.0]
[1723561868687,39.54,146.05,145.98,45.0]
[1723561868860,7.98272156,146.06,145.99,0.25098]
[1723561869063,0.8275496,146.06,145.99,0.25098]
[1723561869975,0.8275496,146.06,145.99,0.12549]
[1723561869976,6.8473,146.05,145.99,0.12549]
[1723561870176,7.6741496,146.06,145.98,45.0]
[1723561870390,7.6741496,146.06,145.99,0.25098]
[1723561870588,0.8275496,146.06,146.0,0.12549]
[1723561870886,0.8275496,146.06,146.0,0.25098]
[1723561871065,0.8275496,146.06,145.97,6.0959]
[1723561871066,42.02818496,146.06,145.97,6.0959]
[1723561871267,39.54,146.04,145.97,6.0959]
[1723561871462,46.3887,146.02,145.97,6.0959]
[1723561871692,39.54,146.02,145.97,6.0959]
[1723561871876,39.54,146.02,145.98,45.0]
[1723561872193,7.6742496,146.06,145.98,45.0]
[1723561872395,20.0,146.05,145.98,45.0]
[1723561872575,1.66063536,146.04,145.98,45.0]
[1723561872779,6.8485,146.02,145.98,45.0]
[1723561872975,1.66063536,146.01,145.97,6.0959]
[1723561873178,6.8474,146.04,145.97,6.0959]
[1723561873396,20.0,146.03,145.97,6.0959]
[1723561873570,0.8275496,146.06,145.97,6.0959]
[1723561873975,7.6741496,146.06,145.98,0.12549]
[1723561874194,7.6741496,146.06,145.98,0.25098]
[1723561874195,0.8275496,146.06,145.98,0.25098]
[1723561874398,0.8275496,146.06,146.0,0.12549]
[1723561874701,1.66063536,146.05,145.98,45.0]
[1723561874897,54.37613268,146.06,145.99,0.12549]
[1723561875112,1.66063536,146.05,145.98,45.0]
[1723561875295,1.66063536,146.05,146.02,0.12549]
[1723561875296,7.16089209,146.05,146.02,0.12549]
[1723561875602,0.8275496,146.06,146.02,0.25098]
[1723561876103,39.54,146.12,146.02,0.25098]
[1723561876104,6.844,146.12,146.02,0.25098]
[1723561876282,39.54,146.12,146.02,0.25098]
[1723561876490,46.3839,146.12,146.04,0.12549]
[1723561876685,14.00262927,146.13,146.04,0.25098]
[1723561876995,6.8433,146.13,146.06,0.12549]
[1723561877204,6.8433,146.13,146.06,0.25098]
[1723561877370,46.3828,146.14,146.07,0.12549]
[1723561877566,39.54,146.16,146.08,6.1168]
[1723561877879,39.54,146.16,146.09,16.6497]
[1723561877880,6.8429,146.14,146.09,16.6497]
[1723561878565,46.69734027,146.16,146.05,16.77519]
[1723561878566,6.8442,146.11,146.05,16.77519]
[1723561878768,39.54,146.12,146.05,16.6497]
[1723561878968,39.54,146.1,146.05,16.6497]
[1723561879197,20.0,146.09,146.05,16.6497]
[1723561879566,20.0,146.11,146.05,16.6497]
[1723561880293,6.8434,146.13,146.05,16.6497]
[1723561880476,7.15734027,146.16,146.07,0.12549]
[1723561880678,7.15734027,146.16,146.07,46.86995432]
[1723561880984,39.54,146.19,146.08,0.12549]
[1723561881184,39.54,146.19,146.1,0.12549]
[1723561881386,39.54,146.19,146.1,45.50196]
[1723561881899,39.54,146.19,146.1,45.37647]
[1723561882405,6.841,146.18,146.1,45.37647]
[1723561882793,6.8426,146.15,146.1,45.0]
[1723561883093,6.8428,146.14,146.1,45.0]
[1723561883395,48.04303536,146.15,146.1,45.0]
[1723561883700,46.3824,146.15,146.1,45.0]
[1723561883999,6.8428,146.14,146.09,22.984]
[1723561884295,46.3833,146.13,146.09,22.984]
[1723561884517,6.8437,146.12,146.09,16.4635]
[1723561884685,46.3833,146.13,146.09,16.4635]
[1723561885094,39.54,146.13,146.09,16.4635]
[1723561885613,51.3027,146.2,146.09,16.4635]
[1723561885614,39.54,146.15,146.09,16.4635]
[1723561885911,39.54,146.17,146.1,0.25098]
[1723561886110,7.98249459,146.21,146.12,0.12549]
[1723561886111,39.54,146.19,146.12,0.12549]
[1723561886283,46.3804,146.19,146.12,0.12549]
[1723561886484,6.8409,146.18,146.12,0.12549]
[1723561886787,39.54,146.19,146.12,0.12549]
[1723561886990,46.3806,146.19,146.12,0.12549]
[1723561887923,6.841,146.18,146.12,6.2754]
[1723561888285,39.54,146.19,146.13,45.0]
[1723561888493,20.0,146.18,146.13,45.0]
[1723561889111,47.52249459,146.21,146.13,45.65333264]
[1723561889416,47.52249459,146.21,146.13,45.0]
[1723561889417,6.8399,146.2,146.13,45.0]
[1723561889616,6.8399,146.2,146.13,45.65552404]